Workbook

Sheet Лист1
A1: Школа | C1: МОБУ СОШ д. Верхний Муйнак | F1: Утвердил: | G1: должность | H1: ДИРЕКТОР
A2: Типовое примерное меню приготавливаемых блюд | G2: фамилия | H2: Кутушева Г. К.
A3: Возрастная категория | D3: 7-11 лет | E3: 1-4 классы | G3: дата | H3: 01.09.2025 года
A5: Неделя | B5: День недели | C5: Прием пищи | D5: Раздел меню | E5: Блюда | F5: Вес блюда, г | G5: Белки | H5: Жиры | I5: Углеводы | J5: Калорийность | K5: № рецептуры | L5: Цена
A6: 1 | B6: 1 | C6: Завтрак | D6: гор.блюдо | E6: Каша пшенная вязкая | F6: 200 | G6: 7.6 | H6: 8.7 | I6: 36.5 | J6: 249.3 | K6: 184
D7: гор.напиток | E7: Чай с сахаром | F7: 200 | G7: 0.2 | H7: 0 | I7: 14 | J7: 56.2 | K7: 430
D8: хлеб | E8: Хлеб пшеничный | F8: 50 | G8: 4 | H8: 0 | I8: 25 | J8: 118 | K8: 1
E9: сыр порциями | F9: 15 | G9: 3.4 | H9: 4.3 | I9: 0 | J9: 53 | K9: 14
E10: яблоко | F10: 100 | G10: 0.3 | H10: 0 | I10: 9 | J10: 40 | K10: 3
D11: итого | F11: =SUM(F6:F10) -> 565 | G11: =SUM(G6:G10) -> 15.5 | H11: =SUM(H6:H10) -> 13 | I11: =SUM(I6:I10) -> 84.5 | J11: =SUM(J6:J10) -> 516.5
A12: =A6 -> 1 | B12: =B6 -> 1 | C12: Обед | D12: закуска
D13: 1 блюдо
D14: 2 блюдо
D15: гарнир
D16: напиток
D17: хлеб бел.
D18: хлеб черн.
D21: итого
A22: =A6 -> 1 | B22: =B6 -> 1 | C22: Итого за день: | F22: =F11+F21 -> 565 | G22: =G11+G21 -> 15.5 | H22: 13 | I22: 84.5 | J22: 516.5
A23: 1 | B23: 2 | C23: Завтрак | D23: гор.блюдо | E23: Птица, тушеная в соусе с овощами | F23: 200 | G23: 14.8 | H23: 26.1 | I23: 17.7 | J23: 352.2 | K23: 308
D24: гор.напиток | E24: Чай с сахаром | F24: 200 | G24: 0 | H24: 0.2 | I24: 14 | J24: 56.2 | K24: 430
D25: хлеб | E25: Хлеб пшеничный | F25: 50 | G25: 4 | H25: 0 | I25: 25 | J25: 118 | K25: 1
D28: итого | F28: =SUM(F23:F27) -> 450 | G28: =SUM(G23:G27) -> 18.8 | H28: =SUM(H23:H27) -> 26.3 | I28: =SUM(I23:I27) -> 56.7 | J28: =SUM(J23:J27) -> 526.4
A29: =A23 -> 1 | B29: =B23 -> 2 | C29: Обед | D29: закуска
D30: 1 блюдо
D31: 2 блюдо
D32: гарнир
D33: напиток
D34: хлеб бел.
D35: хлеб черн.
D38: итого
A39: =A23 -> 1 | B39: =B23 -> 2 | C39: Итого за день: | F39: =F28+F38 -> 450 | G39: =G28+G38 -> 18.8 | H39: 26.3 | I39: 56.7 | J39: 526.4
A40: 1 | B40: 3 | C40: Завтрак | D40: гор.блюдо | E40: Плов из птицы | F40: 200 | G40: 14.9 | H40: 11.8 | I40: 38.2 | J40: 393.3 | K40: 311
D41: гор.напиток | E41: Кисель витаминизированный | F41: 200 | G41: 0 | H41: 0 | I41: 17 | J41: 69 | K41: 405
D42: хлеб | E42: Хлеб пшеничный | F42: 50 | G42: 4 | H42: 0 | I42: 25 | J42: 118 | K42: 1
D43: фрукты | E43: Яблоко | F43: 100 | G43: 0.3 | H43: 0 | I43: 9 | J43: 41 | K43: 3
D46: итого | F46: =SUM(F40:F45) -> 550 | G46: =SUM(G40:G45) -> 19.2 | H46: =SUM(H40:H45) -> 11.8 | I46: =SUM(I40:I45) -> 89.2 | J46: =SUM(J40:J45) -> 621.3
A47: 1 | B47: 3 | C47: Обед | D47: закуска
D48: 1 блюдо
D49: 2 блюдо
D50: гарнир
D51: напиток
D52: хлеб бел.
D53: хлеб черн.
D56: итого
A57: 1 | B57: 3 | C57: Итого за день:
A58: 1 | B58: 4 | C58: Завтрак | D58: гор.блюдо | E58: котлеты рубленые из птицы с соусом | F58: 120 | G58: 14.4 | H58: 21.8 | I58: 15 | J58: 302 | K58: 314
E59: каша гречневая вязкая | F59: 200 | G59: 5.7 | H59: 6.7 | I59: 51 | J59: 210.5 | K59: 324
D60: гор.напиток | E60: компот из сухофруктов | F60: 200 | G60: 0 | H60: 0 | I60: 22 | J60: 86 | K60: 402
D61: хлеб | E61: Хлеб пшеничный | F61: 50 | G61: 4 | H61: 0 | I61: 25 | J61: 118 | K61: 1
D65: итого | F65: =SUM(F58:F64) -> 570 | G65: =SUM(G58:G64) -> 24.1 | H65: =SUM(H58:H64) -> 28.5 | I65: =SUM(I58:I64) -> 113 | J65: =SUM(J58:J64) -> 716.5
A66: =A58 -> 1 | B66: =B58 -> 4 | C66: Обед | D66: закуска
D67: 1 блюдо
D68: 2 блюдо
D69: гарнир
D70: напиток
D71: хлеб бел.
D72: хлеб черн.
D75: итого
A76: =A58 -> 1 | B76: =B58 -> 4 | C76: Итого за день: | F76: =F65+F75 -> 570 | G76: =G65+G75 -> 24.1 | H76: 28.5 | I76: 113 | J76: 716.5
A77: 1 | B77: 5 | C77: Завтрак | D77: гор.блюдо | E77: Картофельное пюре | F77: 200 | G77: 3.4 | H77: 4.4 | I77: 22 | J77: 137.2 | K77: 125
E78: Гуляш из птицы | F78: 100 | G78: 14.3 | H78: 17.4 | I78: 3.1 | J78: 217 | K78: 259
D79: гор.напиток | E79: Чай с сахаром | F79: 200 | G79: 0 | H79: 0 | I79: 14 | J79: 56.2 | K79: 430
D80: хлеб | E80: Хлеб пшеничный | F80: 50 | G80: 4 | H80: 0 | I80: 25 | J80: 118 | K80: 1
D84: итого | F84: =SUM(F77:F83) -> 550 | G84: =SUM(G77:G83) -> 21.7 | H84: =SUM(H77:H83) -> 21.8 | I84: =SUM(I77:I83) -> 64.1 | J84: =SUM(J77:J83) -> 528.4
A85: 1 | B85: 5 | C85: Обед | D85: закуска
D86: 1 блюдо
D87: 2 блюдо
D88: гарнир
D89: напиток
D90: хлеб бел.
D91: хлеб черн.
D92: булочное
D94: итого
A95: 1 | B95: 5 | C95: Итого за день: | F95: =F84+F94 -> 550 | G95: =G84+G94 -> 21.7 | H95: 21.8 | I95: 64.1 | J95: 528.4
A96: 2 | B96: 1 | C96: Завтрак | D96: гор.блюдо | E96: Жаркое по-домашнему | F96: 200 | G96: 20.5 | H96: 23.6 | I96: 17.3 | J96: 350 | K96: 258
D97: гор.напиток | E97: Напиток витаминизированный | F97: 200 | G97: 0 | H97: 0 | I97: 15 | J97: 57 | K97: 405
D98: хлеб | E98: Хлеб пшеничный | F98: 50 | G98: 4 | H98: 0 | I98: 25 | J98: 118 | K98: 1
D99: фрукты | E99: Яблоко | F99: 96 | G99: 0.3 | H99: 0 | I99: 9 | J99: 41 | K99: 3
E100: Масло порциями | F100: 10 | G100: 0 | H100: 8 | I100: 0 | J100: 75 | K100: 13
D102: итого | F102: =SUM(F96:F101) -> 556 | G102: =SUM(G96:G101) -> 24.8 | H102: =SUM(H96:H101) -> 31.6 | I102: =SUM(I96:I101) -> 66.3 | J102: =SUM(J96:J101) -> 641
A103: =A96 -> 2 | B103: =B96 -> 1 | C103: Обед | D103: закуска
D104: 1 блюдо
D105: 2 блюдо
D106: гарнир
D107: напиток
D108: хлеб бел.
D109: хлеб черн.
D112: итого
A113: =A96 -> 2 | B113: =B96 -> 1 | C113: Итого за день: | F113: =F102+F112 -> 556 | G113: =G102+G112 -> 24.8 | H113: 31.6 | I113: 66.3 | J113: 641 | K113: 0
A114: 2 | B114: 2 | C114: Завтрак | D114: гор.блюдо | E114: Плов из птицы | F114: 200 | G114: 14.9 | H114: 11.8 | I114: 38.2 | J114: 393.3 | K114: 311
D115: гор.напиток | E115: Компот из сухофруктов | F115: 200 | G115: 0 | H115: 0 | I115: 22 | J115: 86 | K115: 402
D116: хлеб | E116: Хлеб пшеничный | F116: 50 | G116: 4 | H116: 0 | I116: 25 | J116: 118 | K116: 1
D119: итого | F119: =SUM(F114:F118) -> 450 | G119: =SUM(G114:G118) -> 18.9 | H119: =SUM(H114:H118) -> 11.8 | I119: =SUM(I114:I118) -> 85.2 | J119: =SUM(J114:J118) -> 597.3
A120: =A114 -> 2 | B120: =B114 -> 2 | C120: Обед | D120: закуска
D121: 1 блюдо
D122: 2 блюдо
D123: гарнир
D124: напиток
D125: хлеб бел.
D126: хлеб черн.
D129: итого
A130: =A114 -> 2 | B130: =B114 -> 2 | C130: Итого за день: | F130: =F119+F129 -> 450 | G130: =G119+G129 -> 18.9 | H130: =H119+H129 -> 11.8 | I130: 85.2 | J130: 597.3
A131: 2 | B131: 3 | C131: Завтрак | D131: гор.блюдо | E131: Каша " Дружба" | F131: 200 | G131: 4.1 | H131: 7.5 | I131: 48.2 | J131: 199.6 | K131: 190
D132: гор.напиток | E132: Кисель витаминизированный | F132: 200 | G132: 0 | H132: 0 | I132: 17.4 | J132: 68.8 | K132: 405
D133: хлеб | E133: Хлеб пшеничный | F133: 50 | G133: 4 | H133: 0 | I133: 25 | J133: 118 | K133: 1
D134: фрукты | E134: Яблоко | F134: 100 | G134: 0.3 | H134: 0 | I134: 9 | J134: 40 | K134: 3
D137: итого | F137: =SUM(F131:F136) -> 550 | G137: =SUM(G131:G136) -> 8.4 | H137: =SUM(H131:H136) -> 7.5 | I137: =SUM(I131:I136) -> 99.6 | J137: =SUM(J131:J136) -> 426.4
A138: =A131 -> 2 | B138: =B131 -> 3 | C138: Обед | D138: закуска
D139: 1 блюдо
D140: 2 блюдо
D141: гарнир
D142: напиток
D143: хлеб бел.
D144: хлеб черн.
D147: итого
A148: =A131 -> 2 | B148: =B131 -> 3 | C148: Итого за день: | F148: =F137+F147 -> 550 | G148: =G137+G147 -> 8.4 | H148: 7.5 | I148: 99.6 | J148: 426.4
A149: 2 | B149: 4 | C149: Завтрак | D149: гор.блюдо | E149: Котлеты с соусом | F149: 120 | G149: 11.61 | H149: 22 | I149: 15 | J149: 302 | K149: 314
E150: Макаронные изделия отварные | F150: 200 | G150: 1.29 | H150: 5.9 | I150: 43.5 | J150: 249 | K150: 209
D151: гор.напиток | E151: Чай с сахаром | F151: 200 | G151: 0 | H151: 0 | I151: 14 | J151: 56 | K151: 430
D152: хлеб | E152: Хлеб пшеничный | F152: 50 | G152: 4 | H152: 0 | I152: 25 | J152: 118 | K152: 1
D153: фрукты | E153: яблоко | F153: 96 | G153: 0.3 | H153: 0 | I153: 9 | J153: 40 | K153: 3
D156: итого | F156: =SUM(F149:F155) -> 666 | G156: =SUM(G149:G155) -> 17.2 | H156: 27.9 | I156: 106.5 | J156: 765
A157: =A149 -> 2 | B157: =B149 -> 4 | C157: Обед | D157: закуска
D158: 1 блюдо
D159: 2 блюдо
D160: гарнир
D161: напиток
D162: хлеб бел.
D163: хлеб черн.
D166: итого
A167: =A149 -> 2 | B167: =B149 -> 4 | C167: Итого за день: | F167: =F156+F166 -> 666 | G167: =G156+G166 -> 17.2 | H167: 27.9 | I167: 106.5 | J167: 765
A168: 2 | B168: 5 | C168: Завтрак | D168: гор.блюдо | E168: рыба, тушеная в томате с овощами | F168: 100 | G168: 12.8 | H168: 8.6 | I168: 2.4 | J168: 132.2 | K168: 231
E169: картофельное пюре | F169: 200 | G169: 3.4 | H169: 4.4 | I169: 22 | J169: 137 | K169: 125
D170: гор.напиток | E170: Чай с сахаром | F170: 200 | G170: 0 | H170: 0 | I170: 14 | J170: 56 | K170: 430
D171: хлеб | E171: Хлеб пшеничный | F171: 50 | G171: 4 | H171: 0 | I171: 25 | J171: 118 | K171: 1
D172: фрукты | E172: Яблоко | F172: 96 | G172: 0.3 | H172: 0 | I172: 9 | J172: 40 | K172: 1
E173: сыр порциями | F173: 15 | G173: 3.4 | H173: 4.3 | I173: 0 | J173: 53 | K173: 14
D175: итого | F175: =SUM(F168:F174) -> 661 | G175: =SUM(G168:G174) -> 23.9 | H175: =SUM(H168:H174) -> 17.3 | I175: =SUM(I168:I174) -> 72.4 | J175: =SUM(J168:J174) -> 536.2
A176: 2 | B176: 5 | C176: Обед | D176: закуска
D177: 1 блюдо
D178: 2 блюдо
D179: гарнир
D180: напиток
D181: хлеб бел.
D182: хлеб черн.
D185: итого
A186: 2 | B186: 5 | C186: Итого за день: | F186: =F175+F185 -> 661 | G186: =G175+G185 -> 23.9 | H186: 17.3 | I186: 72.4 | J186: 536.2
